Cogmind - Beta 17.1 @@@ ROGUE MODE // 2026.09.14 @ 19:36:30 Player: 7H-NLC Result: Destroyed by P-60 Hacker with Shock Rifle Performance ------------- Evolutions (0) 0 Regions Visited (3) 600 Robots Destroyed (29) 145 Value Destroyed (695) 695 Prototype IDs (18) 360 Alien Tech Used (0) 0 Bonus (0) 0 TOTAL SCORE: 1800 Bonus ------- None Cogmind --------- Core Integrity 0/250 Matter 290/300 Energy 250/250 System Corruption 4% Temperature Cool (0) Movement Rolling (210) Ox8 Location -9/Recycling Parts ------- > --- POWER (1) -------- Ion Engine > --- PROPULSION (2) --- Armored Wheel Armored Wheel > --- UTILITY (2) ------ Humpback > --- WEAPON (2) ------- Slug Cannon Hammer > --- INVENTORY (35) --- Subdweller Power Source Meta Core Cooling System Large Storage Unit Light Humpback Large Matter Pod (150) Subdweller Optics Improved Terrain Scanner Seismic Detector Scrap Shield Subdweller Laser Battle Rifle Subdweller Machine Gun Enhanced Flamer Scrap Shield Fragment (47) Scrap Shield Fragment (47) Scrap Shield Fragment (45) SUBCON Basin (Full) Peak State ------------ > --- POWER ------------ Ion Engine > --- PROPULSION ------- Armored Wheel Armored Wheel > --- UTILITY ---------- Humpback > --- WEAPON ----------- Slug Cannon Hammer > --- INVENTORY -------- Subdweller Power Source Meta Core Armored Wheel Cooling System Large Storage Unit Light Humpback Large Matter Pod Subdweller Optics Improved Terrain Scanner Seismic Detector Scrap Shield Battle Rifle Subdweller Machine Gun Enhanced Flamer SUBCON Basin [Rating: 34] Favorites ----------- Power Makeshift Power Source Engine Makeshift Power Source Propulsion Armored Wheel Treads Light Treads Wheel Armored Wheel Utility Large Storage Unit Device Improved Terrain Scanner Storage Large Storage Unit Protection Scrap Shield Weapon Hammer Energy Gun Heavy EM Pulse Gun Ballistic Gun Light Assault Rifle Ballistic Cannon Slug Cannon Special Weapon Enhanced Flamer Impact Weapon Hammer Build | -11 -10 -10 -9 ------- Run | Yrd Mat Sub Rec Slots Evolved . | . . . . Power . | . . . . Propulsion . | . . . . Utility . | . . . . Weapon . | . . . . Parts Attached 31 | 7 7 16 1 Power 3 | 1 . 2 . Engine 3 | 1 . 2 . Core . | . . . . Reactor . | . . . . Propulsion 8 | 2 2 3 1 Treads 2 | . 2 . . Leg . | . . . . Wheel 6 | 2 . 3 1 Hover . | . . . . Flight . | . . . . Utility 10 | 2 2 6 . Device 5 | 1 1 3 . Storage 3 | 1 1 1 . Processor . | . . . . Hackware . | . . . . Protection 2 | . . 2 . Artifact . | . . . . Weapon 10 | 2 3 5 . Energy Gun 5 | . 2 3 . Energy Cannon . | . . . . Ballistic Gun 2 | 2 . . . Ballistic Cannon 1 | . . 1 . Launcher . | . . . . Special Weapon 1 | . . 1 . Impact Weapon 1 | . 1 . . Slashing Weapon . | . . . . Piercing Weapon . | . . . . Special Melee Weapon . | . . . . Unidentified Prototypes . | . . . . Parts Lost 7 | . . 7 . Power 1 | . . 1 . Propulsion 1 | . . 1 . Utility 1 | . . 1 . Weapon 4 | . . 4 . Highest Loss Streak 2 | . . 2 . To Critical Strikes 1 | . . 1 . Average Backups 12 | 2 12 12 14 Power . | . 1 . 1 Propulsion 1 | 1 3 1 . Utility 5 | . 4 5 8 Weapon 3 | . 2 4 4 Tool/Special . | . . . . Unused Backups 17 | . 3 7 7 Power 2 | . . 1 1 Propulsion 1 | . . 1 . Utility 6 | . 1 3 2 Weapon 6 | . 1 2 3 Tool/Special 2 | . 1 . 1 Average Slot Usage (%) 99 | . 99 99 85 Engine 14 | . 14 14 14 Treads 1 | . 25 . . Wheel 26 | . 2 27 28 Device 13 | . 14 13 . Storage 13 | . 14 13 14 Energy Gun 4 | . 13 4 . Ballistic Cannon 9 | . . 9 14 Special Weapon 1 | . . 1 . Impact Weapon 11 | . 5 12 14 Peak Build Rating 34 | 7 12 34 34 Average Rating 18 | 5 9 18 33 On Entrance 13 | . 7 12 34 Avg Prop Armor Cover (%) . | . . . . Naked Turns . | . . . . Heaviest Build 214 | 14 33 214 214 Greatest Support 40 | 26 40 40 24 Greatest Overweight (x) 8 | . . 8 8 Average Overweight (x) 1 | . . 1 8 Largest Inventory Capacity 35 | 8 15 35 35 Average Capacity 15 | 7 13 15 35 Most Carried 35 | 5 15 35 35 Average Carried 14 | 2 12 15 34 Final Capacity 35 | 8 15 35 35 Final Carried 35 | 5 15 35 34 Class Distribution -------------------- 96% | Mutant 3% | Hauler-Mutant Dominant Class ---------------- Mutant | -10/Materials Mutant | -10/Subcaves Hauler-Mutant | -9/Recycling Resources | -11 -10 -10 -9 ----------- Run | Yrd Mat Sub Rec Matter Collected 1822 | 431 157 1234 . Remotely . | . . . . Salvage Created 1068 | 217 194 614 43 Parts 55 | 18 5 31 1 Haulers Intercepted . | . . . . Recyclers Shooed 1 | 1 . . . Parts Field Recycled . | . . . . Retrieved Matter . | . . . . Parts Self-Destructed 24 | . . 24 . Prevented 1 | . . 1 . Parts Restored . | . . . . Kills | -11 -10 -10 -9 ------- Run | Yrd Mat Sub Rec Combat Hostiles Destroyed 21 | . 4 16 1 Melee 3 | . 2 . 1 Guns 11 | . 1 10 . Cannons 1 | . . 1 . AOE 3 | . 1 2 . Classes Destroyed 8 | 3 1 3 1 Worker 2 | 2 . . . Tunneler 5 | 5 . . . Recycler 1 | 1 . . . Swarmer 7 | . . 7 . Grunt 4 | . 4 . . Programmer 1 | . . . 1 Artisan 2 | . . 2 . Subdweller 9 | . . 9 . Best Kill Streak 7 | 7 2 4 1 Combat Bots Only 4 | . 2 4 1 Max Kills in Single Turn 2 | 1 1 2 1 Gunslinging . | . . . . Exploded 2 | . 1 2 . Melee 1 | . 1 . 1 Uniques/NPCs Destroyed . | . . . . Combat | -11 -10 -10 -9 -------- Run | Yrd Mat Sub Rec Hostile Shots Fired 140 | . 17 95 28 Missed 41 | . 8 27 6 Hits 99 | . 9 68 22 Projectile 99 | . 9 68 22 AOE 1 | . . 1 . Critical Strikes 5 | . . 4 1 Damage Taken 1523 | . 128 1061 334 Core 252 | . 46 163 43 Absorbed by Shields . | . . . . Regen/Repaired (Parts) 14 | . 14 . . Core Remaining (%) 100 | 100 . . . Volleys Fired 139 | 29 12 98 . Largest 2 | 2 2 2 . Hottest 140 | 40 90 140 . Shots Fired 211 | 58 24 129 . Gun 156 | 58 24 74 . Cannon 49 | . . 49 . Launcher . | . . . . Special 6 | . . 6 . Kinetic 123 | 58 16 49 . Thermal 6 | . . 6 . Explosive . | . . . . Electromagnetic 82 | . 8 74 . Robot Hit Streak 14 | 14 5 10 . Robot Miss Streak 3 | 3 2 3 . Penetration Max . | . . . . Secondary Targets 2 | . . 2 . Max Gunslinging Chain 1 | . . 1 . Shots Hit Robots 133 | 39 22 68 4 Core Hits 44 | 13 6 24 1 Critical Kills 1 | . . . 1 Critical Parts Destroyed 4 | . 3 . 1 Critical Strikes 8 | . 3 3 2 Corrupt 3 | . . 3 . Smash 5 | . 3 . 2 Melee Attacks 143 | . 14 120 9 Impact 143 | . 14 120 9 Slashing . | . . . . Piercing . | . . . . Sneak Attacks 3 | . . 2 1 Combat Hostiles . | . . . . Follow-up Attacks . | . . . . Damage Inflicted 2201 | 399 429 1255 118 Guns 1472 | 399 242 831 . Cannons 69 | . . 69 . Explosions 234 | . 44 190 . Melee 361 | . 143 100 118 Ramming . | . . . . Kinetic 598 | 399 130 69 . Thermal 299 | . 44 255 . Explosive . | . . . . Electromagnetic 943 | . 112 831 . Impact 361 | . 143 100 118 Slashing . | . . . . Piercing . | . . . . Highest Corruption 4 | . . . 4 Average Corruption 2 | . . . 2 Corruption Purged . | . . . . Corruption Blocked . | . . . . Effects 1 | . . . 1 Parts Rejected 1 | . . . 1 Overload Shots . | . . . . Overflow Damage 182 | . 99 26 57 Projectiles 6 | . . 6 . Explosions . | . . . . Melee 176 | . 99 20 57 Knockbacks 3 | . . 1 2 Impact 2 | . . . 2 Kinetic 1 | . . 1 . Secondary . | . . . . Self-Inflicted Damage 41 | . . 41 . Shots 2 | . . 2 . Rammed . | . . . . Targets Rammed . | . . . . Kicked . | . . . . Crushed . | . . . . Highest Temperature 212 | . . 212 . Average Temperature 74 | . . 74 . Received Heat Transfer 480 | . 72 408 . Siege Activations . | . . . . Martial Activations . | . . . . Shielding Activations . | . . . . Robots Disrupted . | . . . . Combat Hostiles . | . . . . Robots Corrupted 5 | . . 5 . Combat Hostiles 3 | . . 3 . Parts Fried 8 | . 2 6 . Impact Corruptions 7 | . 3 2 2 Robots Melted . | . . . . Combat Hostiles . | . . . . Parts Melted . | . . . . Heat Transferred 780 | . 50 730 . Parts Sabotaged . | . . . . Parts Stolen . | . . . . Parts Stripped . | . . . . Power Chain Reactions 3 | . 1 2 . Alert | -11 -10 -10 -9 ------- Run | Yrd Mat Sub Rec Maximum Alert Level . | . . . . Low Security (%) 100 | 100 100 . 100 Level 1 . | . . . . Level 2 . | . . . . Level 3 . | . . . . Level 4 . | . . . . Level 5 . | . . . . High Security . | . . . . Max Security . | . . . . Peak Influence 57 | 10 50 . 57 Initial 57 | . . . 57 Average 9 | 2 7 . 33 Influence Increases 377 | 40 137 180 20 Destroy 0b10 Robot/C 240 | . 80 140 20 Destroy 0b10 Robot/NC 40 | 40 . . . Destroy Leader 30 | . 20 10 . Successful Hack 17 | . 17 . . Destroy Structure 5 | . 5 . . Lose Combat Pursuer 45 | . 15 30 . Influence Decreases 360 | 40 137 60 123 Entered New Map 63 | . . . 63 Time Decay 237 | 40 137 . 60 Lost Part 60 | . . 60 . Squads Dispatched 1 | . 1 . . Investigation 1 | . 1 . . Extermination . | . . . . Reinforcement . | . . . . Assault . | . . . . Garrison . | . . . . Intercept . | . . . . Searches Triggered . | . . . . Construction Impeded . | . . . . Haulers Reinforced . | . . . . Active Scanning Responses . | . . . . Cargo Convoy Interrupts . | . . . . Stealth | -11 -10 -10 -9 --------- Run | Yrd Mat Sub Rec Distress Signals 2 | . 2 . . Communications Jammed . | . . . . Distress Signals . | . . . . Times Spotted 31 | . 12 17 2 Peak Tracking Total 6 | . 4 6 2 Tactical Retreats 2 | . 1 1 . Traps | -11 -10 -10 -9 ------- Run | Yrd Mat Sub Rec Traps Triggered . | . . . . Indirectly . | . . . . Trap Hack Attempts . | . . . . Triggered . | . . . . Disarmed . | . . . . Reprogrammed . | . . . . Reused . | . . . . Traps Extracted . | . . . . Installed 1 | . . 1 . Triggered . | . . . . Most Traps Carried 1 | . . 1 . Machines | -11 -10 -10 -9 ---------- Run | Yrd Mat Sub Rec Machines Disabled 1 | . . 1 . Max in Single Turn 1 | . . 1 . Machines Repaired . | . . . . Machines Dismantled . | . . . . Machines Sabotaged . | . . . . Overloaded Fab Kills . | . . . . Hacking | -11 -10 -10 -9 --------- Run | Yrd Mat Sub Rec Machines Accessed 11 | . 6 4 1 Terminals 5 | . 5 . . Fabricators . | . . . . Repair Stations 1 | . 1 . . Recycling Units 1 | . . . 1 Scanalyzers . | . . . . Garrison Access . | . . . . Total Hacks 30 | . 20 7 3 Successful 17 | . 10 7 . Failed 13 | . 10 . 3 Catastrophic 1 | . . . 1 Database Lockouts . | . . . . Manual 3 | . . . 3 Terminals 18 | . 18 . . Fabricators . | . . . . Repair Stations 2 | . 2 . . Recycling Units 3 | . . . 3 Scanalyzers . | . . . . Garrison Access . | . . . . Terminal Hacks 15 | . 8 7 . Record 4 | . . 4 . Prototype ID Bank 2 | . 2 . . Open Door 1 | . . 1 . Dispatch Records 1 | . 1 . . Transport Status 1 | . 1 . . Hauler Manifests 2 | . 2 . . Registered Components 1 | . 1 . . Zone Layout 1 | . 1 . . Proto ID Catalog 1 | . . 1 . Release Object 1 | . . 1 . Fabricator Hacks . | . . . . Repair Station Hacks 2 | . 2 . . Scan Component 1 | . 1 . . Repair 1 | . 1 . . Recycling Unit Hacks . | . . . . Scanalyzer . | . . . . Garrison Access Hacks . | . . . . Unauthorized Hacks . | . . . . Terminals . | . . . . Fabricators . | . . . . Repair Stations . | . . . . Recycling Units . | . . . . Scanalyzers . | . . . . Garrison Access . | . . . . Data Cores Recovered . | . . . . Used . | . . . . Hacking Detections 7 | . 6 . 1 Full Trace Events 1 | . . . 1 Feedback Events . | . . . . Feedback Blocked . | . . . . Robot Schematics Acquired . | . . . . Robots Built . | . . . . Authchips . | . . . . Time . | . . . . Total Robot Build Rating . | . . . . Part Schematics Acquired . | . . . . Parts Built . | . . . . Authchips . | . . . . Time . | . . . . Total Part Build Rating . | . . . . Part Studies Acquired . | . . . . Parts Repaired 1 | . 1 . . Time 32 | . 32 . . Parts Recycled . | . . . . Recycled Matter . | . . . . Retrieved Matter . | . . . . Retrieved Components . | . . . . Parts Scanalyzed . | . . . . Part Schematics Acquired . | . . . . Parts Damaged . | . . . . Bothacking | -11 -10 -10 -9 ------------ Run | Yrd Mat Sub Rec Used RIF Installer . | . . . . Robots Hacked . | . . . . Non-combat . | . . . . Combat . | . . . . Robot Hacks Applied . | . . . . Relay Couplers Released . | . . . . Fabnet Peak Effective % . | . . . . Robots Rewired . | . . . . Allies Hacked . | . . . . Hacks Repelled . | . . . . Allies | -11 -10 -10 -9 -------- Run | Yrd Mat Sub Rec Total Allies . | . . . . Largest Group . | . . . . Highest-Rated Group . | . . . . Highest-Rated Ally . | . . . . Total Orders . | . . . . Ally Attacks . | . . . . Total Damage . | . . . . Kills . | . . . . Allies Corrupted . | . . . . Allies Melted . | . . . . Intel | -11 -10 -10 -9 ------- Run | Yrd Mat Sub Rec Active Infowar (turns) 19590 | 38 588 18964 . Optics 19 | . . 19 . Terrain 14923 | . . 14923 . Seismic 4648 | 38 588 4022 . Robot Analysis Total . | . . . . Derelict Logs Recovered 1 | . . 1 . Drone Launches . | . . . . Drone Recoveries . | . . . . Exploration | -11 -10 -10 -9 ------------- Run | Yrd Mat Sub Rec Turns Passed 21452 | 162 755 20408 127 Spaces Moved 4112 | 71 400 3595 46 Core 1 | 1 . . . Treads 436 | . 334 102 . Legs . | . . . . Wheels 3675 | 70 66 3493 46 Hover . | . . . . Flight . | . . . . Fastest Speed 50 | 50 90 90 210 Average Speed 117 | 89 148 113 210 Slowest Speed 210 | 90 160 210 210 Overloaded Moves . | . . . . Propulsion Burnouts . | . . . . Robots Hopped . | . . . . Potential Cave-ins 6 | . . 6 . Cave-ins Triggered . | . . . . Exploration Rate (%) 46 | 4 75 92 14 Regions Visited 3 Branch Regions 2 Pre-discovered Areas 2 | . . 2 . Known Exits Taken 1 | . . 1 . Unknown Exits Taken 2 | 1 1 . . Scrap Searched 8 | . . 8 . Spaces Dug 52 | . 2 50 . Terrain Destroyed 75 | . 5 70 . Melee 32 | . 2 30 . Projectile 38 | . . 38 . AOE 5 | . 3 2 . Terrain Rammed . | . . . . Walls Destroyed . | . . . . Machines Disabled . | . . . . Actions | -11 -10 -10 -9 --------- Run | Yrd Mat Sub Rec Total 20236 | 113 514 19549 60 Wait 15655 | 2 57 15595 1 Move 4109 | 70 399 3594 46 Hop . | . . . . Pick Up 75 | 5 16 54 . Fast Attach 11 | 7 1 3 . Attach 11 | . . 10 1 Detach 1 | . . 1 . Swap 60 | . 8 52 . Drop 28 | . 7 21 . Fire 139 | 29 12 98 . Melee 143 | . 14 120 9 Ram . | . . . . Kick . | . . . . Crush . | . . . . Escape Stasis . | . . . . Rewire 3 | . . . 3 Trap 1 | . . 1 . Miscellaneous . | . . . . Route ------- -11/Scrapyard -10/Materials (discovered 3 exits: [*Mat x2] / *Sub) -10/Subcaves (discovered 3 exits: [*Mat x2] / *Rec) -9/Recycling History --------- Turn | Location | Event 9 | -11/Scrapyard | Discovered new exit (range 15) 163 | -11/Scrapyard | Entered Materials 300 | -10/Materials | Discovered new exit (range 14) 317 | -10/Materials | Build established: Mutant 643 | -10/Materials | Discovered new exit (range 5) 828 | -10/Materials | Repaired Hvy. EM Pulse Gun 908 | -10/Materials | Discovered new exit (range 7) 918 | -10/Materials | Entered Subcaves 994 | -10/Subcaves | Learned location of Zion (-6) 994 | -10/Subcaves | Met a Zionite searching for "candidates" 1604 | -10/Subcaves | Shifting Twisted Machinery released Shrapnel Trap 1604 | -10/Subcaves | Shifting Twisted Machinery released Sub. Laser 1641 | -10/Subcaves | Discovered new exit (range 7) 3786 | -10/Subcaves | Shifting Twisted Machinery released Sub. Beam Cannon 3805 | -10/Subcaves | Shifting Twisted Machinery released Sub. Power Source 11962 | -10/Subcaves | Discovered new exit (range 12) 12501 | -10/Subcaves | Ambushed by angry Subdweller bent on revenge 12506 | -10/Subcaves | Core integrity fell below 50% 12549 | -10/Subcaves | Visited 4L-MR0's lab 12559 | -10/Subcaves | Found Meta Core 12666 | -10/Subcaves | Visited Clippyterm 12669 | -10/Subcaves | Learned location of Section 7 (-3) 12669 | -10/Subcaves | Learned Factory fabricator intel 12675 | -10/Subcaves | Identified exit to Recycling 15267 | -10/Subcaves | Core integrity fell below 20% 17313 | -10/Subcaves | A swath of the cavern ceiling suddenly collapsed 20862 | -10/Subcaves | Found SUBCON Basin 21090 | -10/Subcaves | Build established: Hauler-Mutant 21326 | -10/Subcaves | Entered Recycling 21453 | -9/Recycling | Destroyed by P-60 Hacker with Shock Rifle Last Messages --------------- 21415_ G-34 Mercenary destroyed. 21417_ Sneak attack on D-53 Grenadier. 21417_ D-53 Grenadier suffers critical hit (Smash). 21417_ Destroyed Lgt. Deuterium Engine. 21417_ D-53 Grenadier system corrupted by crushing effect. 21417_ D-53 Grenadier knocked back. 21420_ Attempting to rewire Y-45 Defender. 21422_ U-05 Engineer destroyed. 21422_ Y-45 Defender destroyed. 21426_ R-06 Scavenger collects Corrupted Welding Torch. 21430_ P-60 Hacker suffers critical hit (Smash). 21430_ P-60 Hacker destroyed. 21430_ R-06 Scavenger collects Ion Engine. 21432_ System corrupted: Arm. Wheel rejected. 21432_ R-06 Scavenger collects Gravmag System. 21434_ R-06 Scavenger collects Wheel. 21439_ Destroyed Gravmag System. 21439_ P-60 Hacker system corrupted by crushing effect. 21439_ P-60 Hacker knocked back. 21442_ R-06 Scavenger collects Arm. Wheel. Map ----- +----------------------------------------------------+ | ?????????????????????????????????????????? | | ?????????????????????????????????????????? | | ?????????????????????????????????????????? | | ?????????????????????????????????????????? | | ?????????????????????????????????????????? | | ?????????????????????????????????????????? | | ?????????????????????????????????????????? | | ?????????????????????????????????????????? | | ????????? ?????????????????????????????? | | ????????? ???????????????????????????? | | ????????? "???????????????????????????? | | ????????# "???????????????????????????? | | ????????# "???????? ??????????????????? | | ????????+ """?????? #????????????????? | | ????????# """????? #????????????????? | | ????????# ????? #????????????????? | | ????????# ???? #????????????????? | | ????????# """"""? #????????????????? | | ????????# """"""" #????????????????? | | ????????# """"""" #????????????????? | | ????????# """"""" #????????????????? | | ???????## """"""" #????????????????? | | ???????# ###!! ##?????????? | | ???????# ????????? | | ???????# rr r ????????? | | ???????# @% r rr r ????????? | | ???????# #####p#######???????????????? | | ???????## ##??|% Y????????????????????? | | ????????# #??#!=% %i ??????????????????? | | ????????# #??# ]d ! [????????????????? | | ????????# #??# = =??????????????? | | ????????# #### [ ] YY #?????????????? | | ????????# ""##! % t/ h#?????????????? | | ??###???# Y"## Y h#?????????????? | | ??? ???# ""##############?????????????? | | ??? ??# ###??????????????????????????? | | ??# ??# ###########??????????????????? | | ??# """?# # #??????????????????? | | ??# """?# + #??????????????????? | | ??# """ # # ! #??????????????????? | | ??# # #! ! #??????????????????? | | ??# """ + + #??????????????????? | | ??# """ # # #??????????????????? | | ??# """ # # #??????????????????? | | ??# ?# #= ! #??????????????????? | | ??# """?# ##### #####??????????????????? | | ??# ""??# #????##??????????????????????? | | ??# ""??#####????????????????????????????? | | ??? ????????????????????????????????????? | | ?????????????????????????????????????????? | +----------------------------------------------------+ Best States ------------- Heat Dissipation 47 Energy Generation 15 Energy Capacity 250 Matter Stores 300 Matter Capacity 300 Sight Range 21 Terrain Scan Range 16 Terrain Scan Density 10 Armor Coverage 800 Evasion (%) 42 Recoil Reduction 2 Item Schematics ----------------- None Robot Schematics ------------------ None Fabricated ------------ Nothing Repaired ---------- Hvy. EM Pulse Gun | 72% | -10/Materials Studied --------- None Alien Tech Used ----------------- None Achievements -------------- None Challenges ------------ None Game ------ Seed CompactGaussBefriender Manual? 0 Play Time 01:00:30 Cumulative 490.1 hours Start 2026.09.14 @ 18:30:07 End 2026.09.14 @ 19:36:30 Sessions 1 Manual Loads 0 Difficulty Rogue Special Mode None Game No. 362 Rogue 362 Adventurer 0 Explorer 0 Win Type - Total 10 Types 4/0/4/2/0/0/0/0/0/0 Lore% 63 Gallery% 72 Achievement% 59 Wizard Run 0 Options --------- Layout 2 ASCII 0 Keyboard 1 Movement Vi Keybinds 0 Fullscreen 2 Font 32/Smallcaps Map View 77x44 Zoom Use 0% Tactical HUD 1 Map Filters NONE Filters NONE Steam 1 RUN: 6abf7dd9-64f5-4797-84ca-1d7f77c9a282